bitfinex/quotes_ETHUSD_20250424
["timestamp","ask_amount","ask_price","bid_price","bid_amount"]
[1745467869442,5.67581173,1761.9,1761.4,8.67715456]
[1745467870476,5.67581173,1761.9,1761.4,3.0]
[1745467870973,5.67491177,1762.2,1761.7,5.67632617]
[1745467871176,5.67491177,1762.2,1761.8,3.0]
[1745467871375,5.67533112,1762.1,1761.7,3.0]
[1745467871674,5.67537721,1762.0,1761.5,3.0]
[1745467871894,5.67601316,1761.8,1761.2,3.57361371]
[1745467872188,5.67619683,1761.8,1761.2,3.57361371]
[1745467872378,5.67652662,1761.7,1761.2,3.57361371]
[1745467872566,5.67652662,1761.7,1761.2,9.25151715]
[1745467872762,5.67601316,1761.8,1761.2,3.57361371]
[1745467872953,5.67709594,1761.5,1761.1,18.724]
[1745467873156,5.67664362,1761.7,1761.2,5.67775938]
[1745467873157,5.67648081,1761.7,1761.2,5.67775938]
[1745467873488,5.67601316,1761.8,1761.3,5.67757166]
[1745467873688,0.8014,1762.2,1761.6,5.67653654]
[1745467873890,5.67555092,1762.0,1761.5,8.67679503]
[1745467874066,5.67468744,1762.3,1761.8,8.67599487]
[1745467874268,5.67486641,1762.2,1761.8,3.0]
[1745467874991,5.67558209,1762.0,1761.6,3.0]
[1745467875192,5.67558209,1762.0,1761.6,8.67663396]
[1745467875382,5.67522396,1762.1,1761.6,8.67663396]
[1745467875791,5.67408079,1762.4,1761.1,18.724]
[1745467876094,5.67648918,1761.7,1761.2,8.67774663]
[1745467876398,5.67701325,1761.5,1761.0,13.9024539]
[1745467876593,5.67731898,1761.4,1761.1,3.0]
[1745467876808,5.67701325,1761.5,1761.1,3.0]
[1745467877307,5.67536889,1762.0,1761.1,5.67811876]
[1745467877594,11.35307528,1761.7,1761.2,5.67779549]
[1745467877799,5.67666895,1761.6,1761.1,8.6781254]
[1745467878104,0.55,1762.0,1760.5,1.92696052]
[1745467878295,5.67815248,1761.2,1760.7,5.67942801]
[1745467878463,5.67815248,1761.2,1760.8,5.67923094]
[1745467878662,5.67815248,1761.2,1760.9,3.0]
[1745467879419,5.67783835,1761.3,1761.0,3.0]
[1745467879577,5.67783835,1761.3,1760.9,3.0]
[1745467879776,5.67699195,1761.5,1761.0,3.0]
[1745467880010,5.67742756,1761.4,1761.0,3.0]
[1745467880380,5.67703673,1761.5,1761.0,3.0]
[1745467880381,5.67705736,1761.5,1761.0,8.67850567]
[1745467880581,6.5054231,1762.1,1761.1,5.6781596]
[1745467880582,11.35381668,1761.6,1761.1,5.6781596]
[1745467880787,5.67700088,1761.5,1761.0,8.67850567]
[1745467881008,5.67700088,1761.5,1761.0,8.67837969]
[1745467881213,5.67699154,1761.5,1761.1,5.67814257]
[1745467881510,5.67579187,1761.9,1761.0,8.67839919]
[1745467881675,5.67734666,1761.4,1761.0,8.67838897]
[1745467882016,5.67734666,1761.4,1761.0,3.0]
[1745467882199,0.55,1762.0,1761.0,3.0]
[1745467882374,5.67715755,1761.5,1761.0,8.67847927]
[1745467882580,5.67776226,1761.3,1761.0,3.0]
[1745467882886,11.35457604,1761.5,1761.0,8.67843125]
[1745467883087,5.67633535,1761.7,1761.0,3.0]
[1745467883312,5.67654917,1761.7,1761.3,3.0]
[1745467883484,0.30799335,1762.0,1761.3,3.0]
[1745467883687,5.67672935,1761.6,1761.3,3.0]
[1745467883891,5.67648863,1761.7,1761.3,8.67758948]
[1745467884113,5.67638912,1761.7,1761.3,3.0]
[1745467884271,5.6767876,1761.6,1761.3,3.0]
[1745467884471,5.67702358,1761.5,1761.3,3.0]
[1745467884676,5.6767876,1761.6,1761.3,3.0]
[1745467885275,5.67719026,1761.5,1761.3,3.0]
[1745467885476,5.67719026,1761.5,1761.0,3.0]
[1745467885696,5.67641991,1761.7,1761.0,3.0]
[1745467885921,5.67750729,1761.4,1761.0,3.0]
[1745467887028,5.67750729,1761.4,1761.0,8.67848238]
[1745467887332,5.67813758,1761.2,1760.8,3.0]
[1745467887542,5.67847781,1761.1,1760.6,17.2273622]
[1745467887741,5.67815946,1761.2,1760.7,3.0]
[1745467887890,5.67815946,1761.2,1760.9,3.0]
[1745467888090,5.67777805,1761.3,1760.7,3.0]
[1745467888287,5.67777805,1761.3,1760.9,3.0]
[1745467888527,0.8303,1761.4,1760.7,3.0]
[1745467888726,6.50763228,1761.4,1760.7,3.0]
[1745467888897,5.67817481,1761.2,1760.7,8.6795492]
[1745467889226,11.35639815,1761.2,1760.7,8.6795492]
[1745467889418,0.8303,1761.4,1760.7,3.0]
[1745467889730,5.67879728,1761.0,1760.6,11.54761371]
[1745467889945,5.6791984,1760.9,1760.6,7.974]
[1745467890098,5.67952332,1760.8,1760.6,7.974]
[1745467890646,5.67952332,1760.8,1760.5,4.47905502]
[1745467891003,5.67902044,1760.9,1760.5,4.47905502]
[1745467891227,5.67925053,1760.8,1760.5,4.47905502]
[1745467891421,5.67902044,1760.9,1760.5,1.47905502]
[1745467891701,5.67894999,1760.9,1760.5,1.47905502]
[1745467891897,5.67894999,1760.9,1760.5,4.47905502]
[1745467892115,5.67973964,1760.7,1760.5,4.47905502]
[1745467892296,5.67983732,1760.7,1760.5,4.47905502]
[1745467892492,5.67988185,1760.6,1760.5,4.47905502]
[1745467892696,5.67983732,1760.7,1760.5,1.47905502]
[1745467892994,5.67988185,1760.6,1760.5,1.47905502]
[1745467893329,6.48947259,1760.2,1760.1,0.05]
[1745467894202,5.68278683,1759.7,1759.6,0.02818303]
[1745467895137,5.68278683,1759.7,1759.5,0.005]
[1745467895138,5.68310979,1759.6,1759.5,0.005]
[1745467895901,0.8083,1759.7,1759.5,0.005]
[1745467896142,0.8083,1760.1,1759.5,0.005]
[1745467896341,1.3,1760.2,1759.1,0.055]
[1745467896342,0.8083,1759.4,1759.1,0.055]
[1745467896541,5.68403626,1759.4,1759.1,0.055]
[1745467896839,0.8083,1759.7,1759.1,0.055]
[1745467897041,0.8083,1759.7,1759.3,3.0]
[1745467897249,0.8083,1759.7,1759.3,8.68388063]
[1745467897432,0.7649,1760.1,1759.3,6.57361371]
[1745467897640,0.7649,1760.1,1759.6,5.68297443]
[1745467897835,1.3,1760.2,1759.8,3.0]
[1745467898022,5.68196962,1760.0,1759.5,3.0]
[1745467898201,5.68188198,1760.0,1759.5,3.0]
[1745467898404,1.3,1760.2,1759.2,4.83126722]
[1745467898405,7.979,1759.9,1759.2,4.83126722]
[1745467898629,6.44897889,1759.3,1759.2,4.83126722]
[1745467898847,5.684402,1759.2,1759.1,0.055]
[1745467900243,6.44901459,1759.3,1758.1,0.05]
[1745467900244,5.68603276,1758.7,1758.1,0.05]
[1745467900446,5.6859251,1758.8,1758.1,5.73770807]
[1745467900644,13.66487275,1759.1,1758.2,3.57361371]
[1745467900956,5.6844254,1759.2,1758.5,5.68666477]
[1745467901158,5.68494765,1759.1,1758.5,8.68648626]
[1745467901313,0.7649,1759.3,1758.4,5.68682721]
[1745467901660,0.7649,1759.3,1758.1,0.05]
[1745467901661,5.684402,1759.2,1758.1,0.05]
[1745467901861,5.68589782,1758.8,1758.3,3.0]
[1745467902070,5.68537781,1758.9,1758.1,3.05]
[1745467902236,5.68504832,1759.0,1758.1,0.05]
[1745467902439,5.68648095,1758.6,1758.1,0.05]
[1745467902671,5.68676956,1758.5,1758.1,0.05]
[1745467902877,5.68637339,1758.6,1758.1,0.05]
[1745467903026,0.7649,1758.7,1758.1,0.05]
[1745467903228,7.982,1758.6,1758.1,0.05]
[1745467903455,5.68795859,1758.1,1757.7,0.36129937]
[1745467903630,11.55561371,1758.6,1757.7,0.36129937]
[1745467903631,0.7649,1757.8,1757.7,0.36129937]
[1745467903838,0.7649,1758.2,1757.7,0.36129937]
[1745467904043,0.7649,1758.5,1758.0,5.68796074]
[1745467904239,0.7649,1758.9,1758.5,5.68649383]
[1745467904436,0.7649,1758.9,1758.4,8.68672463]
[1745467904644,0.7649,1759.2,1758.6,3.0]
[1745467904838,0.7649,1759.6,1759.1,5.68447191]
[1745467905055,0.7649,1759.9,1759.2,3.0]
[1745467905262,5.68264032,1759.8,1759.2,3.0]
[1745467905567,6.4470613,1759.9,1759.4,3.0]
[1745467905766,13.66586686,1760.3,1759.4,3.0]
[1745467905933,5.68178274,1760.1,1759.4,3.0]
[1745467906133,7.985,1760.3,1759.7,3.0]
[1745467906134,5.6814067,1760.2,1759.7,3.0]
[1745467906456,5.68150418,1760.1,1759.7,3.0]
[1745467906639,5.68197072,1760.0,1759.7,3.0]
[1745467906830,19.60693015,1760.3,1759.3,3.57361371]
[1745467907169,13.66615677,1760.3,1759.3,9.25750928]
[1745467907331,13.66592266,1760.3,1759.5,5.68325823]
[1745467907662,5.68128292,1760.2,1759.5,5.68317395]
[1745467907862,7.985,1760.3,1759.6,3.57361371]
[1745467908239,5.68166699,1760.1,1759.6,3.57361371]
[1745467908439,7.985,1760.3,1759.3,3.57361371]
[1745467908646,0.7653,1759.7,1758.9,3.57361371]
[1745467908840,0.7653,1759.7,1758.5,13.67150439]
[1745467908841,5.68528932,1759.0,1758.6,3.57361371]
[1745467909039,20.37410752,1759.7,1758.6,3.57361371]
[1745467909366,5.68483854,1759.1,1758.6,4.01171508]
[1745467909580,5.68483854,1759.1,1758.6,3.57361371]
[1745467909581,5.68534813,1759.0,1758.6,3.57361371]
[1745467909741,11.37067987,1759.0,1758.5,0.8074]
[1745467909941,0.7653,1759.6,1758.7,5.68600293]
[1745467910242,5.68405362,1759.4,1758.9,3.0]
[1745467910452,6.44856503,1759.6,1759.0,3.0]
[1745467910844,0.7653,1759.6,1759.0,5.68480591]
[1745467911045,5.68284596,1759.7,1759.1,3.0]
[1745467911673,0.7653,1759.9,1759.1,3.8074]
[1745467911973,5.6832385,1759.6,1759.1,3.8074]
[1745467912176,0.7653,1759.9,1759.1,3.8074]
[1745467912348,5.6826377,1759.8,1759.1,0.8074]
[1745467912543,5.68204804,1760.0,1759.2,6.57361371]
[1745467912742,5.68239058,1759.9,1759.3,5.68377478]
[1745467912943,5.68164902,1760.1,1759.5,9.25704018]
[1745467913378,5.68183288,1760.0,1759.5,3.57361371]
[1745467913578,0.7653,1760.3,1759.5,3.57361371]
[1745467913873,5.68226082,1759.9,1759.5,3.57361371]
[1745467914474,5.68226082,1759.9,1759.4,3.0]
[1745467914475,5.68318997,1759.6,1759.1,4.38101371]
[1745467914641,5.68117259,1760.2,1759.1,4.38101371]
[1745467914843,5.68324316,1759.6,1759.1,4.38101371]
[1745467915081,5.68149536,1760.1,1759.2,3.0]
[1745467915248,5.68117259,1760.2,1759.2,8.68423379]
[1745467915447,5.68227877,1759.9,1759.4,3.57361371]
[1745467915746,5.68196922,1760.0,1759.5,3.0]
[1745467916255,5.6822827,1759.9,1759.3,8.68406576]
[1745467916455,5.6822827,1759.9,1759.5,3.0]
[1745467916642,5.68117359,1760.2,1759.5,3.0]
[1745467916843,5.68254856,1759.8,1759.5,3.0]
[1745467917045,5.68361681,1759.5,1759.1,0.8074]
[1745467917246,5.68374104,1759.5,1759.1,0.8074]
[1745467917453,5.68252406,1759.8,1759.3,3.57361371]
[1745467917763,5.68191363,1760.0,1759.4,3.0]
[1745467917964,5.68226511,1759.9,1759.4,3.0]
[1745467918224,0.7653,1760.3,1759.6,3.57361371]
[1745467918486,6.44642069,1760.3,1759.6,3.57361371]
[1745467918644,0.7653,1760.3,1759.6,3.57361371]
[1745467918846,5.68265144,1759.8,1759.2,3.0]
[1745467919048,5.68226668,1759.9,1759.3,9.25756664]
[1745467919278,5.68196609,1760.0,1759.5,3.0]
[1745467919461,6.44621312,1760.3,1759.5,3.0]
[1745467919662,5.68212576,1760.0,1759.5,3.0]
[1745467919863,5.68164782,1760.1,1759.5,3.0]
[1745467920146,5.68460834,1759.2,1758.8,0.773]
[1745467920560,6.49764843,1759.7,1758.8,6.45866926]
[1745467920779,5.68412572,1759.3,1758.9,3.0]
[1745467921095,5.68412572,1759.3,1758.8,4.34661371]
[1745467921096,5.68413791,1759.3,1758.8,4.34661371]
[1745467921312,5.6833599,1759.6,1758.9,3.0]
[1745467921606,5.68268908,1759.8,1759.2,5.6843859]
[1745467921804,5.6817721,1760.1,1759.5,8.68342902]
[1745467922003,0.7824,1760.3,1759.5,3.0]
[1745467922293,5.68326195,1759.6,1759.4,0.8048]
[1745467922445,0.7824,1760.3,1759.3,7.984]
[1745467922651,5.68283483,1759.7,1759.3,7.984]
[1745467922853,0.51041585,1760.1,1759.3,7.984]
[1745467923149,5.6819765,1760.0,1759.3,7.984]
[1745467923351,6.19194515,1760.1,1759.5,3.0]
[1745467923580,5.68194134,1760.0,1759.5,3.0]
[1745467924089,5.68204555,1760.0,1759.5,3.0]
[1745467924252,5.68216981,1759.9,1759.5,3.0]
[1745467924454,5.68270643,1759.8,1759.5,3.0]
[1745467924654,5.68225375,1760.0,1759.5,3.0]
[1745467924853,5.68225375,1760.0,1759.5,3.65736137]
[1745467925374,5.68215874,1759.9,1759.6,0.8048]
[1745467925560,0.00021855,1760.0,1759.6,0.8048]
[1745467925765,0.00021855,1760.0,1759.7,3.0]
[1745467925981,0.00021855,1760.0,1759.4,3.57361371]
[1745467926207,0.00021855,1760.0,1759.4,6.57361371]
[1745467926353,11.36428704,1760.0,1759.4,12.25724911]
[1745467926554,0.00021855,1760.0,1759.5,3.0]
[1745467926800,0.00021855,1760.0,1759.6,0.8048]
[1745467927172,5.68223049,1760.0,1759.6,0.8048]
[1745467927493,0.00021855,1760.0,1759.6,0.8048]
[1745467928095,5.68140631,1760.2,1759.7,6.57361371]
[1745467928719,5.68102753,1760.3,1759.7,6.57361371]
[1745467928720,5.68021287,1760.5,1759.7,3.0]
[1745467928879,5.68194411,1760.0,1759.7,3.0]
[1745467929082,1.08891396,1760.6,1759.7,3.0]
[1745467929309,5.68034165,1760.5,1759.9,3.0]
[1745467929622,5.67843179,1761.1,1760.4,8.68048296]
[1745467929791,5.67843179,1761.1,1760.4,5.68029973]
[1745467929792,5.67826926,1761.1,1760.4,5.68029973]
[1745467929998,5.67837896,1761.1,1760.5,5.68003474]
[1745467930236,13.4453453,1761.4,1760.5,5.68003474]
[1745467930237,5.67778683,1761.3,1760.7,6.48433024]
[1745467930385,5.67741627,1761.4,1760.8,5.67918314]
[1745467930591,5.67741627,1761.4,1760.8,5.67900106]
[1745467930818,5.6771296,1761.5,1760.9,5.67887963]
[1745467931030,10.40409132,1761.6,1760.9,9.25230776]
[1745467931348,4.72728556,1761.6,1761.1,5.67808064]
[1745467931497,10.40418498,1761.6,1761.0,0.8048]
[1745467931695,4.72728556,1761.6,1761.0,6.48323413]
[1745467931908,10.40410422,1761.6,1761.1,3.0]
[1745467932107,4.72728556,1761.6,1761.1,8.67821412]
[1745467932311,4.72728556,1761.6,1761.2,9.2513107]
[1745467932518,4.72728556,1761.6,1761.2,3.57361371]
[1745467932738,4.72728556,1761.6,1761.2,9.25147562]
[1745467932922,5.67594432,1761.9,1761.2,9.25147562]
[1745467933108,5.67593317,1761.9,1761.2,9.25133582]
[1745467933297,25.20217983,1762.2,1761.2,9.25133582]
[1745467933298,5.67551775,1762.0,1761.4,5.67714043]
[1745467933504,5.67472955,1762.2,1761.5,10.05516286]
[1745467933716,4.72728556,1762.5,1761.9,3.0]
[1745467933918,5.67433259,1762.4,1761.9,3.0]
[1745467934436,5.67433259,1762.4,1761.8,3.57361371]
[1745467934437,4.72728556,1762.5,1761.7,3.0]
[1745467934645,5.67513505,1762.1,1761.7,3.0]
[1745467934943,5.67544454,1762.0,1761.7,3.0]
[1745467935319,5.67480064,1762.2,1761.7,3.0]
[1745467935636,5.67471768,1762.3,1761.7,8.67630734]
[1745467936225,5.67471591,1762.3,1761.7,3.0]
[1745467936436,5.67467368,1762.3,1761.7,3.0]
[1745467936671,5.67442212,1762.3,1761.7,8.6761567]
[1745467937329,5.67447262,1762.3,1761.7,8.67611716]
[1745467937530,5.67521453,1762.1,1761.7,3.4278482]
[1745467937725,5.67492519,1762.2,1761.7,3.4278482]
[1745467937928,5.67397594,1762.5,1761.9,3.57361371]
[1745467938163,5.67331974,1762.7,1762.1,5.67492992]
[1745467938371,0.7989,1763.1,1762.0,0.8298]
[1745467938551,5.67490984,1762.2,1762.0,0.8298]
[1745467938753,5.67261407,1762.9,1762.0,0.8298]
[1745467938958,5.67408554,1762.4,1762.0,0.8298]
[1745467939469,5.67431731,1762.4,1762.0,0.8298]
[1745467939656,5.67392301,1762.5,1762.0,0.8298]
[1745467940332,6.47088884,1763.1,1762.0,0.8298]
[1745467940571,5.67418132,1762.4,1762.0,0.8298]
[1745467940775,5.67325487,1762.7,1762.1,5.67492329]
[1745467941232,5.67288803,1762.8,1762.1,5.67492329]
[1745467941233,5.67296572,1762.8,1762.2,8.67456706]
[1745467941428,6.47074494,1763.1,1762.5,3.0]
[1745467941429,5.67233567,1763.0,1762.5,3.0]
[1745467941730,5.67185326,1763.1,1762.6,3.57361371]
[1745467941929,5.67135023,1763.3,1762.7,8.67289429]
[1745467942172,11.34221904,1763.4,1762.8,0.8298]
[1745467942346,5.67130109,1763.3,1762.8,0.8298]
[1745467943070,5.67066253,1763.5,1762.9,3.57361371]
[1745467943259,5.67069158,1763.5,1762.9,3.57361371]
[1745467943519,5.67089574,1763.4,1762.9,3.57361371]
[1745467943722,5.67148738,1763.3,1762.8,0.8298]
[1745467943893,5.6698985,1763.7,1762.8,0.8298]
[1745467944240,7.508,1763.9,1763.0,3.57361371]
[1745467944396,5.67069297,1763.5,1763.0,3.57361371]
[1745467944592,7.508,1763.9,1762.4,19.5568]
[1745467944838,5.67357594,1762.6,1762.4,0.8298]
[1745467944996,5.67213335,1763.1,1762.4,0.8298]
[1745467945191,5.67150635,1763.2,1762.4,0.8298]
[1745467945435,5.67262134,1762.9,1762.4,0.8298]
[1745467945727,5.67153715,1763.2,1762.4,0.8298]
[1745467945931,5.67269534,1762.9,1762.4,0.8298]
[1745467946102,7.505,1763.3,1762.4,0.8298]
[1745467946103,7.505,1763.3,1762.4,3.8298]
[1745467946433,5.67162542,1763.2,1762.6,12.24702718]
[1745467946655,5.67182753,1763.2,1762.7,0.8298]
[1745467946951,5.67204776,1763.1,1762.7,0.8298]
[1745467947442,5.67131487,1763.3,1762.7,6.50280374]
[1745467947665,5.67022,1763.6,1762.7,0.8298]
[1745467947941,5.67135241,1763.3,1762.7,6.50271635]
[1745467948141,5.67135241,1763.3,1762.8,3.0]
[1745467948447,7.504,1763.7,1762.8,3.0]
[1745467948645,5.67113869,1763.4,1762.8,3.0]
[1745467948847,5.67054153,1763.5,1762.7,0.8298]
[1745467949036,5.67198578,1763.1,1762.7,0.8298]
[1745467949232,5.67206639,1763.1,1762.7,0.8298]
[1745467949437,5.67216433,1763.0,1762.7,0.8298]
[1745467949833,5.6719478,1763.1,1762.7,0.8298]
[1745467950152,5.67218928,1763.0,1762.7,0.8298]
[1745467950346,5.67171368,1763.2,1762.7,0.8298]
[1745467950647,5.67155396,1763.2,1762.8,3.0]
[1745467951927,5.67162562,1763.2,1762.8,3.0]
[1745467952338,5.67170879,1763.2,1762.8,3.0]
[1745467953128,5.67161186,1763.2,1762.8,3.0]
[1745467953333,5.6719394,1763.1,1762.8,3.0]
[1745467953753,5.67165813,1763.2,1762.8,3.0]
[1745467954155,7.504,1763.7,1762.8,5.67251371]
[1745467954321,5.6707073,1763.5,1763.0,3.0]
[1745467954517,5.6707073,1763.5,1763.1,0.7605]
[1745467954761,5.67000142,1763.7,1763.1,0.7605]
[1745467954945,5.67134564,1763.3,1763.1,0.7605]
[1745467955150,5.67129082,1763.3,1763.1,0.7605]
[1745467956118,5.67214258,1763.1,1762.8,0.7605]
[1745467956546,5.67202672,1763.1,1762.8,0.7605]
[1745467956744,8.3165,1763.4,1762.5,0.7605]
[1745467956963,5.67264652,1762.9,1762.5,0.7605]
[1745467957124,5.67118471,1763.3,1762.5,0.7605]
[1745467957326,5.67289445,1762.8,1762.5,0.7605]
[1745467957535,5.67227669,1763.0,1762.5,0.7605]
[1745467957828,5.67232899,1763.0,1762.5,0.7605]
[1745467958052,5.67225646,1763.0,1762.6,3.0]
[1745467958254,5.67200025,1763.1,1762.6,3.0]
[1745467958756,5.67128952,1763.3,1762.7,5.67288897]
[1745467958964,5.67128952,1763.3,1762.8,3.0]
[1745467959161,7.502,1763.6,1762.8,3.0]
[1745467959352,5.67104105,1763.4,1762.9,0.7605]
[1745467959655,5.67123525,1763.3,1762.9,0.7605]
[1745467960059,5.67117085,1763.4,1762.9,1.13655]
[1745467960264,5.670629,1763.5,1763.0,3.0]
[1745467961360,11.34148765,1763.5,1763.0,3.0]
[1745467961668,5.67039152,1763.6,1763.1,3.0]
[1745467962262,5.67067833,1763.5,1763.1,3.0]
[1745467962581,5.67116714,1763.4,1762.9,4.13655]
[1745467962742,5.67022,1763.6,1763.0,0.413655]
[1745467962743,5.67038464,1763.6,1763.0,0.413655]
[1745467962941,5.67066833,1763.5,1763.1,3.0]
[1745467963180,0.81812435,1763.9,1763.0,0.413655]
[1745467963181,5.67100434,1763.4,1763.0,0.413655]
[1745467963357,5.67108016,1763.4,1762.9,4.13655]
[1745467964349,5.67175528,1763.2,1762.9,4.13655]
[1745467964554,5.67175528,1763.2,1762.9,3.7605]
[1745467964751,5.67133933,1763.3,1762.9,3.7605]
[1745467965079,5.66977093,1763.8,1762.9,9.43288586]
[1745467965080,5.67072038,1763.5,1762.9,9.43288586]
[1745467965285,5.67072038,1763.5,1762.9,3.7605]
[1745467965482,5.67089415,1763.4,1762.9,3.7605]
[1745467965648,5.67089415,1763.4,1762.9,5.21931137]
[1745467966050,5.67148027,1763.3,1762.9,5.21931137]
[1745467966449,5.67069791,1763.5,1762.9,10.89166165]
[1745467966781,5.67131964,1763.3,1762.9,5.21931137]
[1745467966979,5.67102368,1763.4,1762.9,5.21931137]
[1745467967179,5.67196582,1763.1,1762.9,0.7605]
[1745467969195,5.67214974,1763.0,1762.9,0.7605]
[1745467969492,5.67164134,1763.2,1762.9,0.7605]
[1745467969788,0.8173,1763.6,1762.9,0.7605]
[1745467970089,5.67184433,1763.1,1762.9,0.7605]
[1745467970591,5.67168722,1763.2,1762.9,0.7605]
[1745467970892,5.67195636,1763.1,1762.9,0.7605]
[1745467971302,5.67087096,1763.4,1762.9,0.7605]
[1745467971303,6.48765542,1763.6,1762.9,0.7605]
[1745467971462,5.67212119,1763.1,1762.9,0.7605]
[1745467973099,5.67171971,1763.2,1762.9,0.7605]
[1745467973599,12.92193796,1763.7,1762.9,0.7605]
[1745467973600,5.67100828,1763.4,1762.9,0.7605]
[1745467973800,0.51430744,1763.3,1762.9,0.7605]
[1745467974468,5.67103856,1763.4,1762.9,0.7605]
[1745467974671,5.97962345,1763.4,1762.9,0.7605]
[1745467975397,0.51429419,1763.3,1762.9,0.7605]
[1745467975602,0.51429419,1763.3,1762.9,7.73355772]
[1745467975978,5.67137698,1763.3,1762.9,2.06118793]
[1745467976174,5.67137698,1763.3,1762.9,0.7605]
[1745467976509,5.67071137,1763.5,1762.9,6.43284554]
[1745467976663,0.5144033,1763.4,1763.2,3.0]
[1745467977068,5.67006241,1763.7,1763.2,3.0]
[1745467977275,5.67006241,1763.7,1763.2,6.66473859]
[1745467977486,5.67006241,1763.7,1763.3,0.7618]
[1745467977688,0.5144033,1763.6,1763.3,0.7618]
[1745467979081,0.5144033,1763.6,1763.4,3.66473859]
[1745467979286,6.18409926,1763.8,1763.4,3.66473859]
[1745467979792,5.66991155,1763.7,1763.4,3.66473859]
[1745467980313,5.66991155,1763.7,1763.3,0.7618]
[1745467981169,5.97837627,1763.8,1763.3,4.62781843]
[1745467981774,5.97824361,1763.9,1763.3,4.62781843]
[1745467982007,5.67016051,1763.7,1763.3,3.7618]
[1745467982217,0.5140329,1763.7,1763.3,3.7618]
[1745467982808,0.5140329,1763.8,1763.4,3.66473859]
[1745467983022,0.5140329,1763.8,1763.3,3.7618]
[1745467983187,5.67068159,1763.5,1763.3,0.7618]
[1745467983383,5.6708631,1763.4,1763.1,3.0]
[1745467983782,5.6708631,1763.4,1763.0,200.7742]
[1745467983983,5.67134782,1763.3,1763.0,200.7742]
[1745467984716,6.18480623,1763.4,1763.0,200.7742]
[1745467984906,5.97898798,1763.5,1763.0,200.7742]
[1745467985219,5.67130138,1763.3,1763.0,200.7742]
[1745467985524,5.67182803,1763.1,1763.0,200.0]
[1745467986022,5.6716796,1763.2,1763.0,200.0]
[1745467987118,5.67137543,1763.3,1763.0,200.0]
[1745467987320,11.34283159,1763.3,1763.0,200.0]
[1745467987526,5.67137543,1763.3,1763.0,200.0]
[1745467987827,1.3,1763.4,1763.0,200.0]
[1745467988127,6.97087467,1763.4,1763.0,200.0]
[1745467988567,5.67155639,1763.2,1763.0,200.0]
[1745467988718,5.67164835,1763.2,1763.0,200.0]
[1745467989038,11.34267645,1763.3,1763.0,200.0]
[1745467989226,5.67118471,1763.3,1763.0,200.0]
[1745467989626,5.67180608,1763.2,1763.0,200.0]
[1745467990023,1.3,1763.4,1763.0,200.0]
[1745467990427,12.64209658,1763.4,1763.0,200.0]
[1745467990629,6.97097021,1763.4,1763.0,200.0]
[1745467990817,5.67121499,1763.3,1763.0,200.0]
[1745467991016,6.971038,1763.4,1763.0,200.0]
[1745467991229,5.67139612,1763.3,1763.0,200.0]
[1745467991609,5.67162251,1763.2,1763.0,200.0]
[1745467991807,5.6713307,1763.3,1763.0,200.0]
[1745467992109,6.97100796,1763.4,1763.0,200.0]
[1745467992308,6.97100796,1763.4,1763.0,205.57320403]
[1745467992717,1.3,1763.4,1763.0,205.57320403]
[1745467992904,1.3,1763.4,1763.3,3.7742]
[1745467993103,0.3083644,1763.5,1763.3,3.7742]
[1745467993342,0.3083644,1763.5,1763.4,6.66473859]
[1745467993563,5.66910753,1764.0,1763.4,13.94658968]
[1745467993739,5.66973335,1763.8,1763.4,5.27572658]
[1745467993908,5.669458,1763.9,1763.4,3.66473859]
[1745467994311,5.66953891,1763.9,1763.4,3.66473859]
[1745467994706,5.66964738,1763.8,1763.4,3.66473859]
[1745467995837,5.66990267,1763.7,1763.4,3.66473859]
[1745467996028,5.66986915,1763.8,1763.4,3.66473859]
[1745467996338,5.66906054,1764.0,1763.4,9.77931549]
[1745467996545,5.66906054,1764.0,1763.4,4.10863245]
[1745467996546,5.66942152,1763.9,1763.4,4.10863245]
[1745467996743,5.6691175,1764.0,1763.4,7.10863245]
[1745467997043,6.749,1764.2,1763.4,12.77935159]
[1745467997044,5.66877972,1764.1,1763.4,12.77935159]
[1745467997341,5.66931812,1763.9,1763.4,7.10863245]
[1745467997536,6.749,1764.2,1763.4,7.10863245]
[1745467997537,6.749,1764.2,1763.5,3.71086325]
[1745467997847,5.66847779,1764.2,1763.8,3.66473859]
[1745467998018,5.66810903,1764.3,1763.8,3.66473859]
[1745467998224,5.66814428,1764.3,1763.8,3.66473859]
[1745467998414,5.66814428,1764.3,1763.8,4.67416157]
[1745467998609,5.66843167,1764.2,1763.8,4.67416157]
[1745467998954,5.66764905,1764.4,1763.7,0.7597]
[1745467999107,5.66875529,1764.1,1763.7,0.7597]
[1745467999306,5.66850354,1764.2,1763.7,0.7597]
[1745467999967,5.66770799,1764.4,1763.7,0.7597]
[1745468000265,5.66861706,1764.1,1763.7,0.7597]
[1745468000450,5.66843114,1764.2,1763.7,1.50214386]
[1745468000659,5.66843114,1764.2,1763.8,3.66473859]
[1745468000852,5.66801771,1764.3,1763.8,3.66473859]
[1745468001051,13.24183928,1764.6,1763.9,3.0]
[1745468001052,5.66773266,1764.4,1763.9,3.0]
[1745468001562,5.66809324,1764.3,1763.9,3.0]
[1745468001770,5.66809324,1764.3,1764.0,0.3]
[1745468001940,6.49297749,1764.6,1764.1,3.0]
[1745468002271,5.6673529,1764.5,1764.1,3.0]
[1745468002471,5.66717749,1764.6,1764.2,0.7597]
[1745468002632,5.66743594,1764.5,1764.2,0.7597]
[1745468002968,5.66743594,1764.5,1764.2,1.13567]
[1745468003171,5.66717749,1764.6,1764.2,1.13567]
[1745468003369,5.66746812,1764.5,1764.2,1.13567]
[1745468003668,0.4040584,1764.7,1764.3,3.0]
[1745468003849,6.07094199,1764.7,1764.3,3.0]
[1745468004243,5.6671519,1764.6,1764.3,3.0]
[1745468004565,6.07094199,1764.7,1764.3,3.78004086]
[1745468005069,5.66764905,1764.4,1763.7,0.7597]
[1745468005238,5.66844486,1764.2,1763.7,4.42443859]
[1745468005653,5.6675435,1764.5,1763.7,10.09416967]
[1745468005859,5.6675435,1764.5,1764.0,3.0]
[1745468006162,5.66708242,1764.6,1764.0,8.66871479]
[1745468006336,5.66708242,1764.6,1764.2,3.0]
[1745468006529,5.66726225,1764.6,1764.2,3.0]
[1745468006931,0.4040584,1764.7,1764.2,3.0]